bitfinex-derivatives/quotes_ETHF0:USTF0_20251012
["timestamp","ask_amount","ask_price","bid_price","bid_amount"]
[1760265509786,47.46312233,3818.6,3818.5,1.4152]
[1760265512698,47.46312233,3818.6,3818.5,0.405]
[1760265512899,47.46312233,3818.6,3818.5,1.4152]
[1760265513796,47.46312233,3818.6,3818.5,0.405]
[1760265513991,47.46312233,3818.6,3818.5,1.4152]
[1760265514596,0.47119,3818.5,3818.4,3.2078]
[1760265515102,6.89017056,3818.5,3818.4,4.218]
[1760265515699,6.89017056,3818.5,3818.4,3.2078]
[1760265515905,0.47124,3818.1,3818.0,1.4152]
[1760265516104,1.17804,3818.4,3817.9,3.2078]
[1760265516105,0.47126,3818.0,3817.9,3.2078]
[1760265516496,0.47127,3817.9,3817.7,1.0102]
[1760265516698,41.27127,3817.9,3817.7,1.0102]
[1760265516995,47.64472144,3817.9,3817.7,1.0102]
[1760265518003,47.64472144,3817.9,3817.8,1.0363931]
[1760265518700,47.64472144,3817.9,3817.8,0.0261931]
[1760265519198,47.64472144,3817.9,3817.8,1.0363931]
[1760265523607,47.64472144,3817.9,3817.8,1.6978931]
[1760265523807,47.64472144,3817.9,3817.8,1.0363931]
[1760265524108,47.64472144,3817.9,3817.8,0.0261931]
[1760265524308,47.64472144,3817.9,3817.8,1.0363931]
[1760265527101,47.64472144,3817.9,3817.8,2.1691731]
[1760265527504,47.64472144,3817.9,3817.8,1.6978931]
[1760265527807,47.17345144,3817.9,3817.8,2.8285731]
[1760265528001,6.37345144,3817.9,3817.8,7.8285731]
[1760265530315,6.37345144,3817.9,3817.8,11.0363731]
[1760265531317,6.37345144,3817.9,3817.8,7.8285731]
[1760265531612,6.37345144,3817.9,3817.8,11.0363731]
[1760265531811,6.37345144,3817.9,3817.8,7.8285731]
[1760265532012,6.37345144,3817.9,3817.8,11.0363731]
[1760265532614,40.8,3818.4,3818.3,2.80232]
[1760265532807,40.8,3818.4,3818.3,6.01012]
[1760265533008,47.22923121,3818.4,3818.3,6.01012]
[1760265533712,47.22923121,3818.4,3818.3,11.01012]
[1760265533916,3.4468812,3818.4,3818.3,11.01012]
[1760265534214,2.80336097,3818.4,3818.3,6.01012]
[1760265534414,43.60336097,3818.4,3818.3,6.01012]
[1760265534607,3.46946896,3818.4,3818.3,6.01012]
[1760265534805,6.40258341,3818.4,3818.3,6.01012]
[1760265535014,6.40258341,3818.4,3818.3,5.35072]
[1760265535209,2.93311445,3818.4,3818.3,5.35072]
[1760265535410,6.27179902,3818.4,3818.3,5.35072]
[1760265535610,3.33868457,3818.4,3818.3,5.35072]
[1760265535812,6.31896257,3818.4,3818.3,6.01012]
[1760265539015,40.80282801,3818.6,3818.5,3.2154]
[1760265539516,44.19112001,3818.6,3818.5,3.2154]
[1760265541215,44.19112001,3818.6,3818.5,3.21539]
[1760265541216,44.66230001,3818.6,3818.5,3.21539]
[1760265541416,47.6346757,3818.6,3818.5,2.55599]
[1760265542118,47.6346757,3818.6,3818.5,2.0848]
[1760265542321,47.1634957,3818.6,3818.5,3.21539]
[1760265544727,47.6346757,3818.6,3818.5,3.21539]
[1760265545416,47.6346757,3818.6,3818.5,1.4233]
[1760265546821,0.47123,3818.2,3818.1,1.0102]
[1760265547212,0.47124,3818.1,3818.0,0.4131]
[1760265547417,0.47127,3817.9,3817.5,1.4152]
[1760265547617,41.27127,3817.9,3817.5,1.4152]
[1760265547926,47.56356808,3817.9,3817.5,1.4152]
[1760265551521,47.56356808,3817.9,3817.8,1.0055931]
[1760265552618,47.56356808,3817.9,3817.8,2.8037731]
[1760265552619,6.29229808,3817.9,3817.8,2.8037731]
[1760265552822,0.00282801,3818.6,3818.5,3.16649]
[1760265553025,0.00282801,3818.6,3818.5,4.5762]
[1760265553332,47.18375338,3818.6,3818.5,4.5762]
[1760265553524,47.65493338,3818.6,3818.5,5.2711]
[1760265554031,47.65493338,3818.6,3818.5,2.0633]
[1760265556024,47.18375338,3818.6,3818.5,3.16649]
[1760265557031,0.00282801,3818.6,3818.5,11.37429]
[1760265558031,0.47111,3819.3,3819.2,2.3063]
[1760265558230,0.47111,3819.3,3819.2,5.5141]
[1760265558432,6.21349022,3819.3,3819.2,5.98521]
[1760265558734,1.17736,3820.6,3820.0,1.0839]
[1760265558928,0.47353179,3820.6,3820.5,1.3684]
[1760265559336,6.69357665,3820.6,3820.5,1.3684]
[1760265560425,47.49357665,3820.6,3820.5,1.3684]
[1760265560623,47.49357665,3820.6,3820.5,2.0633]
[1760265561134,47.49357665,3820.6,3820.5,1.3684]
[1760265562831,47.49357665,3820.6,3820.5,0.389]
[1760265563038,0.47097,3820.3,3820.2,0.9794]
[1760265563429,6.74906492,3820.3,3820.2,0.9794]
[1760265568135,6.74906492,3820.3,3820.2,1.6743]
[1760265568637,6.74906492,3820.3,3820.2,2.14529]
[1760265571730,6.74906492,3820.3,3820.2,2.77729]
[1760265572433,6.27809492,3820.3,3820.2,2.77729]
[1760265572841,2.91697311,3820.3,3820.2,7.77729]
[1760265573142,40.80259179,3820.6,3820.5,0.85995]
[1760265573328,40.80259179,3820.6,3820.5,6.37405]
[1760265573532,47.14269583,3820.6,3820.5,6.37405]
[1760265573735,47.14269583,3820.6,3820.5,11.37405]
[1760265573936,0.00259179,3820.6,3820.5,11.37405]
[1760265576137,40.8,3821.4,3821.3,0.47085]
[1760265576347,1.17674,3822.6,3822.5,1.0839]
[1760265576348,0.47069,3822.6,3822.5,1.0839]
[1760265576641,0.47069,3822.6,3822.5,0.389]
[1760265576840,47.53888999,3822.6,3822.5,0.389]
[1760265577042,47.53888999,3822.6,3822.5,1.3684]
[1760265577235,47.54079214,3822.6,3822.5,1.3684]
[1760265580843,1.17677,3822.5,3821.7,3.2078]
[1760265581050,0.47077,3822.0,3821.8,0.47079]
[1760265581349,0.47075,3822.2,3822.0,0.3788]
[1760265581847,6.23777197,3822.1,3822.0,2.16086]
[1760265582142,40.80190215,3822.6,3822.2,0.47074]
[1760265582143,0.47072,3822.4,3822.2,0.47074]
[1760265582441,3.83370388,3822.4,3822.2,1.11024]
[1760265582655,0.47073,3822.3,3822.2,1.11024]
[1760265582944,6.64861635,3822.3,3822.2,1.5737]
[1760265583645,6.64861635,3822.3,3822.2,2.04444]
[1760265585446,6.17788635,3822.3,3822.2,2.71624]
[1760265585949,6.17788635,3822.3,3822.2,7.71624]
[1760265587841,2.76652519,3822.3,3822.2,2.71624]
[1760265588048,0.00190215,3822.6,3822.5,3.1121]
[1760265588248,0.00190215,3822.6,3822.5,6.3199]
[1760265589849,41.27058,3823.5,3823.4,1.76999]
[1760265590050,41.27058,3823.5,3823.4,2.71059]
[1760265590350,47.48580138,3823.5,3823.4,2.24]
[1760265590552,47.48580138,3823.5,3823.4,1.5785]
[1760265590848,47.48883648,3823.5,3823.4,1.58077991]
[1760265592946,47.48883648,3823.5,3823.4,0.00227991]
[1760265593148,53.25451024,3823.5,3823.4,0.94287991]
[1760265595054,0.47069,3822.6,3822.5,1.342]
[1760265595248,0.47069,3822.6,3822.5,2.6414]
[1760265595453,6.62481206,3822.6,3822.5,2.6414]
[1760265596149,6.62481206,3822.6,3822.5,2.64396157]
[1760265596750,47.42481206,3822.6,3822.5,2.64396157]
[1760265596950,46.95412206,3822.6,3822.5,3.11466157]
[1760265597146,47.42481206,3822.6,3822.5,3.11466157]
[1760265597551,47.42481206,3822.6,3822.5,2.64396157]
[1760265597951,47.42481206,3822.6,3822.5,3.11466157]
[1760265599455,48.19206808,3822.6,3822.5,3.11466157]
[1760265599957,6.15412206,3822.6,3822.5,3.11466157]
[1760265600653,6.15412206,3822.6,3822.5,8.11466157]
[1760265601751,6.15412206,3822.6,3822.5,3.11466157]
[1760265603253,6.92269391,3822.6,3822.5,3.11466157]
[1760265603654,7.39338391,3822.6,3822.5,1.34456157]
[1760265604153,7.39338391,3822.6,3822.5,2.45316157]
[1760265607761,7.39338391,3822.6,3822.5,1.34456157]
[1760265608959,49.12863397,3822.6,3822.5,0.00256157]
[1760265609156,48.19338391,3822.6,3822.5,1.98246157]
[1760265609350,48.19338391,3822.6,3822.5,0.40396157]
[1760265609555,54.12246447,3822.6,3822.5,0.00256157]
[1760265610261,53.19338391,3822.6,3822.5,0.00256157]
[1760265610854,48.19338391,3822.6,3822.5,0.00256157]
[1760265611060,48.19338391,3822.6,3822.0,3.5866]
[1760265611061,0.47075,3822.1,3822.0,3.5866]
[1760265611261,1.23932185,3822.1,3822.0,3.5866]
[1760265611562,1.23932185,3822.1,3822.0,3.2078]
[1760265611563,7.70766856,3822.1,3822.0,3.2078]
[1760265611763,7.70766856,3822.1,3822.0,4.5442]
[1760265612263,7.70766856,3822.1,3822.0,4.546651]
[1760265613363,6.93909671,3822.1,3822.0,4.546651]
[1760265614164,6.93909671,3822.1,3822.0,3.210251]
[1760265614457,6.93909671,3822.1,3822.0,4.546651]
[1760265615858,6.93909671,3822.1,3822.0,3.210251]
[1760265616063,6.93909671,3822.1,3822.0,0.002451]
[1760265617160,47.73909671,3822.1,3822.0,0.002451]
[1760265617360,47.73909671,3822.1,3822.0,1.338851]
[1760265618564,47.73909671,3822.1,3822.0,2.481411]
[1760265618965,47.73909671,3822.1,3822.0,1.338851]
[1760265620169,47.73909671,3822.1,3822.0,1.809611]
[1760265620461,47.73909671,3822.1,3822.0,1.338851]
[1760265620664,47.73909671,3822.1,3822.0,0.002451]
[1760265620870,50.94689671,3822.1,3822.0,0.002451]
[1760265625175,50.94689671,3822.1,3821.5,4.5406]
[1760265625176,0.47081,3821.6,3821.5,4.5406]
[1760265625377,0.47085,3821.3,3821.2,0.9438]
[1760265625875,6.58206481,3821.3,3821.2,0.9438]
[1760265626077,6.58206481,3821.3,3821.2,1.41466]
[1760265626576,6.11121481,3821.3,3821.2,2.72156]
[1760265627077,6.58206481,3821.3,3821.2,2.72156]
[1760265627375,6.11121481,3821.3,3821.2,2.72156]
[1760265627575,6.58206481,3821.3,3821.2,2.72156]
[1760265627783,6.11121481,3821.3,3821.2,2.72156]
[1760265628579,6.11121481,3821.3,3821.2,5.92936]
[1760265634578,6.58206481,3821.3,3821.2,5.92936]
[1760265635881,6.58206481,3821.3,3821.2,4.8234]
[1760265636181,6.58206481,3821.3,3821.2,5.29426]
[1760265637180,6.58206481,3821.3,3821.2,4.8234]
[1760265637678,6.58206481,3821.3,3821.2,5.29426]
[1760265638178,6.58206481,3821.3,3821.2,5.92936]
[1760265638379,6.11121481,3821.3,3821.2,5.92936]
[1760265638882,6.58206481,3821.3,3821.2,5.92936]
[1760265639682,6.11121481,3821.3,3821.2,5.92936]
[1760265644078,40.8,3822.1,3822.0,3.05796]
[1760265644477,47.17396432,3822.1,3822.0,3.05796]
[1760265645883,47.64471432,3822.1,3822.0,2.41406]
[1760265646677,47.17396432,3822.1,3822.0,2.41406]
[1760265646980,47.17396432,3822.1,3822.0,3.05796]
[1760265647881,47.17396432,3822.1,3822.0,6.26576]
[1760265649988,47.64471432,3822.1,3822.0,4.5359]
[1760265650685,47.64471432,3822.1,3822.0,3.2078]
[1760265650686,52.64471432,3822.1,3822.0,3.2078]
[1760265650888,0.47081,3821.6,3821.5,0.3865]
[1760265651186,3.38025845,3821.6,3821.5,0.3865]
[1760265651383,6.81536352,3821.6,3821.5,0.3865]
[1760265651583,6.81536352,3821.6,3821.5,1.3281]
[1760265652786,6.81536352,3821.6,3821.5,2.41412]
[1760265653894,6.81536352,3821.6,3821.5,1.79892]
[1760265654190,6.81536352,3821.6,3821.5,1.3281]
[1760265654685,6.81536352,3821.6,3821.5,1.79892]
[1760265656287,6.81536352,3821.6,3821.5,1.3281]
[1760265656491,0.47085,3821.3,3821.2,4.62026]
[1760265656793,6.83952242,3821.3,3821.2,4.62026]
[1760265657193,6.83952242,3821.3,3821.2,5.23546]
[1760265657393,6.36867242,3821.3,3821.2,5.87936]
[1760265659292,6.83952242,3821.3,3821.2,5.87936]
[1760265659493,6.83952242,3821.3,3821.2,4.7646]
[1760265659695,6.83952242,3821.3,3821.2,5.23546]
[1760265661100,6.36867242,3821.3,3821.2,5.23546]
[1760265661303,6.36867242,3821.3,3821.2,5.87936]
[1760265661696,6.83952242,3821.3,3821.2,5.23546]
[1760265662394,6.36867242,3821.3,3821.2,5.23546]
[1760265662794,6.83952242,3821.3,3821.2,4.1494]
[1760265662997,6.83952242,3821.3,3821.2,0.9416]
[1760265663500,47.63952242,3821.3,3821.2,0.9416]
[1760265664798,57.43467242,3821.3,3820.8,3.2078]
[1760265665102,0.47095,3820.5,3820.4,4.62036]
[1760265665305,0.47290949,3820.5,3820.4,4.62036]
[1760265665504,6.78931063,3820.5,3820.4,4.1494]
[1760265666303,6.78931063,3820.5,3820.4,4.62036]
[1760265667703,6.31836063,3820.5,3820.4,4.62036]
[1760265668004,6.31836063,3820.5,3820.4,5.87946]
[1760265668198,2.84426557,3820.5,3820.4,10.87946]
[1760265668504,40.8,3821.3,3821.2,1.72996]
[1760265668704,40.8,3821.3,3821.2,2.67156]
[1760265669004,46.97034894,3821.3,3821.2,2.67156]
[1760265669504,46.97235495,3821.3,3821.2,2.67354896]
[1760265672805,46.97235495,3821.3,3821.2,5.88134896]
[1760265675401,47.44320495,3821.3,3821.2,0.94358896]
[1760265675603,47.44320495,3821.3,3821.2,1.41444896]
[1760265676494,46.97235495,3821.3,3821.2,1.41444896]
[1760265676905,47.44320495,3821.3,3821.2,1.41444896]
[1760265679001,47.44320495,3821.3,3821.2,0.00198896]
[1760265679208,0.47094,3820.6,3820.5,1.2775]
[1760265679407,1.17723,3821.0,3820.2,0.891]
[1760265679408,0.47097,3820.3,3820.2,0.891]
[1760265679806,47.51695088,3820.3,3820.2,0.891]
[1760265682509,0.471,3820.1,3820.0,4.95631]
[1760265682808,3.42269467,3820.1,3820.0,4.95631]
[1760265683106,6.88036994,3820.1,3820.0,4.95631]
[1760265684009,6.40936994,3820.1,3820.0,4.95631]
[1760265684209,6.40936994,3820.1,3820.0,5.59611]
[1760265685407,6.88036994,3820.1,3820.0,4.4853]
[1760265685598,6.88036994,3820.1,3820.0,4.95631]
[1760265686104,6.40936994,3820.1,3820.0,4.95631]
[1760265686307,6.40936994,3820.1,3820.0,5.59611]
[1760265686710,6.40936994,3820.1,3820.0,6.21641]
[1760265686907,6.40936994,3820.1,3820.0,11.21641]
[1760265687912,6.40936994,3820.1,3820.0,6.21641]
[1760265690810,6.40936994,3820.1,3820.0,11.21641]
[1760265691012,3.45767527,3820.1,3820.0,11.21641]
[1760265691307,0.47094,3820.6,3820.5,0.83485]
[1760265691513,0.47094,3820.6,3820.5,2.98595]
[1760265691808,47.5737597,3820.6,3820.5,2.98595]
[1760265692017,3.41373671,3820.6,3820.5,7.98595]
[1760265695918,3.41373671,3820.6,3820.5,2.98595]
[1760265697908,0.00200601,3821.3,3821.2,2.62196]
[1760265698220,0.00200601,3821.3,3821.2,5.82976]
[1760265700817,2.91604892,3821.3,3821.2,5.82976]
[1760265704026,3.2078,3822.5,3822.4,2.64891]
[1760265704220,0.47066,3822.8,3822.7,1.5807]
[1760265704518,47.5154948,3822.8,3822.7,2.64888]
[1760265704824,47.51789935,3822.8,3822.7,2.65088601]
[1760265706026,47.51789935,3822.8,3822.7,2.18020601]
[1760265706227,47.51789935,3822.8,3822.7,1.58270601]
[1760265706726,47.51789935,3822.8,3822.7,2.05338601]
[1760265709227,47.04723935,3822.8,3822.7,2.05338601]
[1760265709525,47.51790935,3822.8,3822.7,2.05338601]
[1760265710725,47.51790935,3822.8,3822.7,1.58270601]
[1760265710924,47.51790935,3822.8,3822.7,0.93880601]
[1760265711628,47.51790935,3822.8,3822.7,1.40948601]
[1760265711830,47.51790935,3822.8,3822.7,0.93880601]
[1760265713129,47.51790935,3822.8,3822.7,1.40948601]
[1760265715130,47.51790935,3822.8,3822.7,2.05338601]
[1760265715331,47.51790935,3822.8,3822.7,2.65088601]
[1760265720538,47.04723935,3822.8,3822.7,2.65088601]
[1760265720932,47.51790935,3822.8,3822.7,2.65088601]
[1760265721239,47.51790935,3822.8,3822.7,2.05338601]
[1760265722439,47.51790935,3822.8,3822.7,1.40948601]
[1760265723240,47.51790935,3822.8,3822.7,2.05338601]
[1760265723441,47.51790935,3822.8,3822.7,2.65088601]
[1760265723936,6.24723935,3822.8,3822.7,7.65088601]
[1760265724134,4.13686799,3825.4,3824.4,2.1782]
[1760265724442,0.6188,3824.3,3824.2,0.47048]
[1760265724640,2.13,3824.3,3824.1,3.2078]
[1760265724935,2.13,3823.5,3823.4,0.47059]
[1760265725139,2.13310959,3823.5,3823.4,2.05129]
[1760265725441,48.23193362,3823.5,3823.4,2.64879]
[1760265725841,49.15323362,3823.5,3823.4,2.64879]
[1760265726245,48.23193362,3823.5,3823.4,2.64879]
[1760265727443,47.02323362,3823.5,3823.4,2.64879]
[1760265728041,6.22323362,3823.5,3823.4,2.64879]
[1760265730139,3.2078,3825.2,3824.0,0.3658]
[1760265730339,2.1823,3824.9,3824.8,0.47037]
[1760265730542,6.23871799,3824.9,3824.8,2.60067]
[1760265730847,2.1823,3825.6,3825.5,2.01089]
[1760265731042,1.26112764,3825.6,3825.5,2.3788812]
[1760265731342,7.58943295,3825.6,3825.5,2.9685812]
[1760265731549,6.96703295,3825.6,3825.5,2.9685812]
[1760265732539,47.76703295,3825.6,3825.5,2.9685812]
[1760265732743,47.13113295,3825.6,3825.5,2.9685812]
[1760265733749,6.33113295,3825.6,3825.5,2.9685812]
[1760265733958,2.92617544,3825.6,3825.5,2.9685812]
[1760265734154,0.00282764,3825.6,3825.5,2.9685812]
[1760265736860,7.64e-06,3825.6,3825.5,7.9685812]
[1760265737853,7.64e-06,3825.6,3825.5,2.9685812]
[1760265738060,3.41001948,3825.6,3825.5,2.9685812]
[1760265738261,2.77411948,3825.6,3825.5,2.9685812]
[1760265741164,7.64e-06,3825.6,3825.5,7.0720812]
[1760265742053,7.64e-06,3825.6,3825.5,2.0720812]
[1760265743666,7.64e-06,3825.6,3825.5,5.2798812]
[1760265744059,2.91088323,3825.6,3825.5,5.2798812]
[1760265744256,0.924,3827.2,3827.1,1.2338]
[1760265744453,0.022,3827.8,3827.2,0.47007]
[1760265744762,1.5599,3827.3,3827.2,1.70387]
[1760265745162,7.88535071,3827.3,3827.2,2.27247]
[1760265745867,3.42810814,3827.3,3827.2,2.27247]
[1760265747060,5.61040814,3827.3,3827.2,1.2338]
[1760265747367,5.61040814,3827.3,3827.2,0.6441]
[1760265747368,8.38470842,3827.3,3827.2,0.6441]
[1760265752370,8.38470842,3827.3,3827.2,3.8519]
[1760265754467,8.38470842,3827.3,3827.2,4.32198]
[1760265755660,8.38470842,3827.3,3827.2,4.91168]
[1760265758756,8.38470842,3827.3,3827.2,3.2078]
[1760265758963,14.59944306,3827.3,3827.2,3.2078]
[1760265760371,2.59113,3826.8,3826.7,3.2078]
[1760265760567,3.33579464,3826.8,3826.7,3.2078]
[1760265760768,9.53346931,3826.8,3826.7,3.2078]
[1760265760963,50.33346931,3826.8,3826.7,3.67794]
[1760265761261,50.33346931,3826.8,3826.7,3.2078]
[1760265762067,50.33346931,3826.8,3826.7,3.67794]
[1760265766068,49.86333931,3826.8,3826.7,3.67794]
[1760265766276,49.86333931,3826.8,3826.7,5.53204]
[1760265766277,3.49493421,3826.8,3826.7,5.53204]
[1760265766570,0.3773,3827.0,3826.9,1.75621]
[1760265766774,2.02014974,3827.0,3826.9,2.32421]
[1760265766972,0.90108575,3827.3,3827.2,2.32418]
[1760265767167,1.63581964,3827.3,3827.2,5.53198]
[1760265767368,48.67166926,3827.3,3827.2,5.53198]
[1760265767564,49.31376926,3827.3,3827.2,5.53198]
[1760265767769,8.51376926,3827.3,3827.2,5.53198]
[1760265767968,7.87166926,3827.3,3827.2,5.53198]
[1760265768875,7.86795082,3827.3,3827.2,5.53198]
[1760265769580,0.00278575,3827.3,3827.2,10.53198]
[1760265770077,0.90108575,3827.3,3827.2,5.53198]
[1760265770279,1.54318575,3827.3,3827.2,5.53198]
[1760265771476,0.90108575,3827.3,3827.2,5.53198]
[1760265771677,0.00278575,3827.3,3827.2,5.53198]
[1760265772373,0.90108575,3827.3,3827.2,5.53198]
[1760265773078,0.00278575,3827.3,3827.2,5.53198]
[1760265774183,0.90108575,3827.3,3827.2,5.53198]
[1760265775682,0.90108575,3827.3,3827.2,2.32418]
[1760265775883,0.90108575,3827.3,3827.2,5.53198]
[1760265777184,2.13318575,3827.3,3827.2,4.96398]
[1760265777381,4.48465152,3827.3,3827.2,5.53198]
[1760265777683,3.84255152,3827.3,3827.2,5.53198]
[1760265778783,4.48465152,3827.3,3827.2,5.53198]
[1760265779481,2.94425152,3827.3,3827.2,5.53198]
[1760265780382,0.00278575,3827.3,3827.2,5.53198]
[1760265785792,0.90108575,3827.3,3827.2,5.53198]
[1760265786286,0.00278575,3827.3,3827.2,5.53198]
[1760265791283,0.92168575,3827.3,3827.2,5.53198]
[1760265792290,1.53168575,3827.3,3827.2,5.53198]
[1760265792480,8.48675111,3827.3,3827.2,4.31988]
[1760265792684,8.95682111,3827.3,3827.2,4.31988]
[1760265792885,8.95682111,3827.3,3827.2,3.8498]
[1760265793187,8.95682111,3827.3,3827.2,3.2078]
[1760265793392,13.95682111,3827.3,3827.2,3.2078]
[1760265794791,13.95682111,3827.3,3827.2,3.67788]
[1760265796583,7.27355111,3827.3,3827.2,5.44438]
[1760265796789,6.35465111,3827.3,3827.2,5.44438]
[1760265797094,7.27355111,3827.3,3827.2,5.44438]
[1760265797289,7.88355111,3827.3,3827.2,5.44438]
[1760265799493,7.88355111,3827.3,3827.2,4.90448]
[1760265799995,8.48675111,3827.3,3827.2,4.90448]
[1760265800296,8.48675111,3827.3,3827.2,4.31768]
[1760265800687,8.48675111,3827.3,3827.2,3.67788]
[1760265800994,13.95682111,3827.3,3827.2,3.2078]
[1760265802993,13.48675111,3827.3,3827.2,3.67788]
[1760265803400,13.95682111,3827.3,3827.2,3.67788]
[1760265803595,13.95682111,3827.3,3827.2,3.2078]
[1760265803996,13.95682111,3827.3,3827.2,3.67788]
[1760265804698,13.95682111,3827.3,3827.2,3.2078]
[1760265805999,13.95682111,3827.3,3827.2,3.67788]
[1760265806799,13.95682111,3827.3,3827.2,3.2078]
[1760265807194,0.47008,3827.2,3827.1,0.47008]
[1760265807400,2.6022,3827.1,3827.0,0.4701]
[1760265807802,9.01919856,3827.1,3827.0,0.4701]
[1760265808195,8.54909856,3827.1,3827.0,0.4701]
[1760265809798,9.01918856,3827.1,3827.0,1.1099]
[1760265810403,9.01918856,3827.1,3827.0,0.4701]
[1760265810604,2.0477,3827.0,3826.9,3.2078]
[1760265810907,9.12409515,3827.0,3826.9,3.2078]
[1760265811307,9.12409515,3827.0,3826.9,3.67791]
[1760265813210,9.12409515,3827.0,3826.9,3.2078]
[1760265813605,9.12409515,3827.0,3826.0,3.81484381]
[1760265813606,2.60225,3826.6,3826.5,3.2078]
[1760265814008,8.85457108,3826.6,3826.5,3.2078]
[1760265814309,49.65457108,3826.6,3826.5,3.2078]
[1760265817211,1.68338,3826.4,3826.3,0.47019]
[1760265817411,2.6023,3826.3,3826.2,0.4702]
[1760265817619,2.6023,3826.2,3826.1,3.67801]
[1760265817910,8.92447211,3826.2,3826.1,3.67801]
[1760265818508,8.92447211,3826.2,3826.1,3.2078]
[1760265818712,8.92447211,3826.2,3826.1,3.67801]
[1760265819214,6.32217211,3826.2,3826.1,5.44451]
[1760265819515,0.9189,3826.7,3826.1,5.44451]
[1760265819516,0.9189,3826.7,3826.6,2.23665]
[1760265819806,0.9189,3826.7,3826.6,5.44445]
[1760265820512,0.9189,3826.7,3826.6,4.90455]
[1760265820513,8.53367205,3826.7,3826.6,4.90455]
[1760265823416,7.33477205,3826.7,3826.6,5.41245]
[1760265823617,2.963779,3826.7,3826.6,5.41245]
[1760265825020,4.974179,3826.7,3826.6,4.90455]
[1760265825317,8.39761858,3826.7,3826.6,4.4344]
[1760265825516,8.39761858,3826.7,3826.6,5.40935]
[1760265825716,7.82771858,3826.7,3826.6,5.40935]
[1760265828822,8.39761858,3826.7,3826.6,4.90455]
[1760265830017,3.817679,3826.7,3826.6,5.40935]
[1760265835916,1.16718575,3827.3,3827.2,2.23508]
[1760265836115,1.16718575,3827.3,3827.2,5.44288]
[1760265836317,0.00278575,3827.3,3827.2,5.44288]
[1760265836515,0.85668575,3827.3,3827.2,5.44288]
[1760265837321,1.79598575,3827.3,3827.2,5.44288]
[1760265839128,0.94208575,3827.3,3827.2,5.44288]
[1760265840626,1.79598575,3827.3,3827.2,5.44288]
[1760265841220,2.38258575,3827.3,3827.2,5.44288]
[1760265841631,0.94208575,3827.3,3827.2,5.44288]
[1760265842724,1.79598575,3827.3,3827.2,5.44288]
[1760265847828,2.38258575,3827.3,3827.2,5.44288]
[1760265848422,2.95248575,3827.3,3827.2,4.93808]
[1760265848629,9.58626093,3827.3,3827.2,3.2078]
[1760265849526,9.11619093,3827.3,3827.2,3.67788]
[1760265849722,9.58626093,3827.3,3827.2,3.2078]
[1760265852436,1.67959,3827.1,3827.0,0.4701]
[1760265852735,8.74804259,3827.1,3827.0,3.6779]
[1760265852938,2.06,3826.6,3826.5,3.67796]
[1760265853234,5.96864255,3826.6,3826.5,3.2078]
[1760265853423,49.53192942,3826.6,3826.5,3.2078]
[1760265853629,54.53192942,3826.6,3826.5,3.2078]
[1760265856536,49.06177942,3826.6,3826.5,4.88456]
[1760265856937,49.06177942,3826.6,3826.5,4.28636]
[1760265859937,49.06177942,3826.6,3826.5,3.67796]
[1760265860144,49.53192942,3826.6,3826.5,3.67796]
[1760265860644,49.53192942,3826.6,3826.5,3.2078]
[1760265861042,49.53192942,3826.6,3826.5,3.67796]
[1760265861737,0.3518,3826.0,3825.9,3.2078]
[1760265861942,2.4118,3826.0,3825.9,4.28644]
[1760265862143,8.86155217,3826.0,3825.9,4.28644]
[1760265866248,8.86155217,3826.0,3825.9,3.2078]
[1760265866249,9.33178217,3826.0,3825.9,3.2078]
[1760265866439,9.33178217,3826.0,3825.5,3.6802812]
[1760265866440,2.06,3825.6,3825.5,3.6802812]
[1760265866835,49.55163153,3825.6,3825.5,3.2099912]
[1760265867034,49.08136153,3825.6,3825.5,3.6802812]
[1760265867244,45.03608929,3825.6,3825.5,5.3633812]
[1760265867741,45.63368929,3825.6,3825.5,4.8868812]
[1760265868649,46.24558929,3825.6,3825.5,4.8868812]
[1760265872040,5.44558929,3825.6,3825.5,4.8868812]
[1760265875543,5.44558929,3825.6,3825.5,4.2886812]
[1760265876250,5.44558929,3825.6,3825.5,4.8868812]
[1760265877153,5.44558929,3825.6,3825.5,4.2886812]
[1760265877351,13.93336132,3825.6,3825.5,0.0021912]
[1760265877543,13.93336132,3825.6,3825.0,3.2078]
[1760265877544,2.06,3825.1,3825.0,3.2078]
[1760265877744,2.53034,3825.1,3825.0,3.2078]
[1760265877952,9.01477342,3825.1,3825.0,3.2078]
[1760265878556,2.53038,3824.7,3824.6,3.2078]
[1760265878747,2.53038,3824.7,3824.6,3.21020435]
[1760265879048,49.61295536,3824.7,3824.6,3.21020435]
[1760265879851,49.61295536,3824.7,3824.6,0.00240435]
[1760265880749,55.55285536,3824.7,3824.6,4.35e-06]
[1760265881049,2.1103,3823.9,3823.8,0.47048]
[1760265881252,2.1103,3823.9,3823.8,1.64538]
[1760265881453,8.31962268,3823.9,3823.8,1.64538]
[1760265881844,8.3224633,3823.9,3823.8,1.64790964]
[1760265884751,6.2121633,3823.9,3823.8,2.12240964]
[1760265884942,7.1303633,3823.9,3823.8,2.12240964]
[1760265885348,7.7232633,3823.9,3823.8,2.12240964]
[1760265885550,7.7232633,3823.9,3823.8,1.64790964]
[1760265886346,7.7232633,3823.9,3823.8,7.11730964]
[1760265886347,0.00284062,3823.9,3823.8,7.11730964]
[1760265887652,0.85794062,3823.9,3823.8,2.11730964]
[1760265887852,5.50173003,3823.9,3823.8,1.05140964]
[1760265890055,5.50173003,3823.9,3823.8,1.63080964]
[1760265890855,6.66733003,3823.9,3823.8,1.63080964]
[1760265891057,6.06833003,3823.9,3823.8,2.10020964]
[1760265891355,6.66733003,3823.9,3823.8,1.63080964]
[1760265897557,6.66733003,3823.9,3823.8,1.05140964]
[1760265898762,6.66733003,3823.9,3823.8,1.63080964]
[1760265899260,6.06833003,3823.9,3823.8,2.10020964]
[1760265900661,9.45201053,3823.9,3823.8,0.47300964]
[1760265901055,0.47056,3823.3,3823.2,3.2078]
[1760265901261,2.51756,3823.3,3823.2,3.2078]
[1760265901565,8.40504031,3823.3,3823.2,3.2078]
[1760265901759,49.67560031,3823.3,3823.2,3.2078]
[1760265902062,49.67560031,3823.3,3823.2,3.20912304]
[1760265902368,49.67560031,3823.3,3823.2,3.67969304]
[1760265902863,49.67560031,3823.3,3823.2,3.20912304]
[1760265904268,49.20504031,3823.3,3823.2,4.84849304]
[1760265904671,49.20504031,3823.3,3823.2,3.79852304]